Cogmind - Beta 14 @@@ ROGUE MODE // 2024.12.07 @ 21:25:57 Player: Shimmyarah Result: Destroyed by S-43 Plague with Heavy Machine Gun Performance ------------- Evolutions (7) 3500 Regions Visited (12) 2400 Robots Destroyed (42) 210 Value Destroyed (1337) 1337 Prototype IDs (23) 460 Alien Tech Used (0) 0 Bonus (456) 456 TOTAL SCORE: 8363 Bonus ------- Follower Combat Kills 156 Registered with UFD 300 Cogmind --------- Core Integrity 0/1300 Matter 140/300 Energy 99/100 System Corruption 4% Temperature Cool (0) Movement Core (50) Location -3/Research Parts ------- > --- POWER (2) -------- (None) > --- PROPULSION (6) --- (None) > --- UTILITY (11) ----- Hacking Suite Hacking Suite Advanced System Shield > --- WEAPON (2) ------- (None) > --- INVENTORY (5) ---- Light Particle Reactor Transmission Jammer ECM Suite Improved Reaction Control System Companion Sword Peak State ------------ > --- POWER ------------ Neutrino Core Light Particle Reactor > --- PROPULSION ------- Antigrav Array Antigrav Array Antigrav Array > --- UTILITY ---------- Enhanced Optical Array Improved Sensor Array Hacking Suite Hacking Suite Hacking Suite Hacking Suite System Shield Advanced System Shield > --- WEAPON ----------- Companion Sword > --- INVENTORY -------- Improved Linear Gravjet Improved Coolant Injector Transmission Jammer ECM Suite Improved Reaction Control System [Rating: 99] Favorites ----------- Power Improved Ion Engine Engine Improved Ion Engine Power Core Micro Fission Core Reactor Light Particle Reactor Propulsion Light Treads Treads Light Treads Leg Aluminum Leg Wheel Armored Wheel Hover Unit Gyrokinetic Inverter Flight Unit VTOL Module Utility Humpback Device Improved Terrain Scanner Storage Humpback Processor Surveybot 17 Chip Hackware Hacking Suite Weapon Companion Sword Energy Gun Small Laser Ballistic Gun Subdweller Machine Gun Launcher Subdweller Shrapnel Launcher Special Weapon Plasma Cutter Slashing Weapon Companion Sword Build | -11 -10 -10 -8 -8 -6 -5 -5 -5 -5 -5 -4 -3 ------- Run | Yrd Mat Sub Rec Scr Fac Fac Ext Cet Arc Hub Fac Res Slots Evolved 14 | . . . . . 8 2 . . . . 2 2 Power 1 | . . . . . . . . . . . 1 . Propulsion 4 | . . . . . 1 2 . . . . 1 . Utility 9 | . . . . . 7 . . . . . . 2 Weapon . | . . . . . . . . . . . . . Parts Attached 114 | 1 6 8 4 25 28 7 11 1 . 9 3 11 Power 16 | . . . 1 4 3 1 2 . . 1 2 2 Engine 10 | . . . 1 3 3 1 2 . . . . . Core 4 | . . . . 1 . . . . . 1 1 1 Reactor 2 | . . . . . . . . . . . 1 1 Propulsion 36 | . 5 . 2 5 8 2 4 1 . 2 1 6 Treads 10 | . 2 . 2 5 1 . . . . . . . Leg 5 | . 3 . . . 1 . 1 . . . . . Wheel 2 | . . . . . . . 1 . . . . 1 Hover 9 | . . . . . . . . 1 . 2 1 5 Flight 10 | . . . . . 6 2 2 . . . . . Utility 37 | 1 1 1 . 9 13 3 5 . . 4 . . Device 18 | 1 . 1 . 5 5 2 3 . . 1 . . Storage 6 | . 1 . . 4 . . 1 . . . . . Processor 2 | . . . . . 1 . . . . 1 . . Hackware 11 | . . . . . 7 1 1 . . 2 . . Protection . | . . . . . . . . . . . . . Artifact . | . . . . . . . . . . . . . Weapon 25 | . . 7 1 7 4 1 . . . 2 . 3 Energy Gun 4 | . . . 1 2 1 . . . . . . . Energy Cannon . | . . . . . . . . . . . . . Ballistic Gun 5 | . . 5 . . . . . . . . . . Ballistic Cannon . | . . . . . . . . . . . . . Launcher 5 | . . 2 . 2 1 . . . . . . . Special Weapon 2 | . . . . . 1 . . . . 1 . . Impact Weapon . | . . . . . . . . . . . . . Slashing Weapon 9 | . . . . 3 1 1 . . . 1 . 3 Piercing Weapon . | . . . . . . . . . . . . . Special Melee Weapon . | . . . . . . . . . . . . . Unidentified Prototypes 2 | . . . . 1 . . 1 . . . . . Parts Lost 42 | . . 2 1 . 7 1 7 6 5 1 3 9 Power 9 | . . . 1 . 1 1 2 1 . . 2 1 Propulsion 15 | . . . . . 2 . 4 5 1 . . 3 Utility 15 | . . 1 . . 3 . 1 . 4 . 1 5 Weapon 3 | . . 1 . . 1 . . . . 1 . . Highest Loss Streak 6 | . . 1 1 . 4 1 6 4 5 1 3 5 To Critical Strikes . | . . . . . . . . . . . . . Average Slot Usage (%) 55 | . 100 99 99 48 87 84 86 83 52 63 69 58 Engine 8 | . 14 14 13 8 5 5 4 1 . . . . Treads 6 | . 17 28 28 5 13 . . . . . . . Device 2 | . 14 13 14 1 8 11 5 5 1 2 5 2 Storage 12 | . 14 14 14 12 . . . . . . . . Hackware 2 | . . . . . 40 32 40 41 39 39 34 26 Energy Gun 1 | . 14 3 14 1 . . . . . . . . Ballistic Gun 2 | . 14 23 14 1 . . . . . . . . Launcher 4 | . . . . 5 . . . . . . . . Slashing Weapon 10 | . . . . 12 5 5 5 5 3 3 5 2 Peak Build Rating 99 | 8 8 13 14 27 49 61 70 66 49 64 69 99 Average Rating 15 | 6 8 10 13 12 40 53 61 60 39 47 62 68 On Entrance 32 | 6 8 8 13 14 24 37 58 66 49 19 58 56 Naked Turns 57 | . . . . 57 . . . . . . . . Heaviest Build 219 | 13 28 36 33 219 209 19 13 10 5 12 22 33 Greatest Support 78 | 20 40 40 40 50 70 27 25 17 11 22 34 78 Greatest Overweight (x) 72 | . 1 . . 72 4 1 3 1 1 1 . 2 Average Overweight (x) 5 | . . . . 9 . . . . . . . . Largest Inventory Capacity 35 | 8 15 15 15 35 35 5 5 5 5 5 5 5 Average Capacity 26 | 8 14 15 15 29 9 5 5 5 5 5 5 5 Most Carried 30 | 8 11 15 15 30 30 4 5 5 5 5 5 5 Average Carried 9 | 6 9 13 14 9 7 2 4 4 4 4 4 4 Final Capacity 35 | 8 15 15 15 35 5 5 5 5 5 5 5 5 Final Carried 30 | 8 11 13 15 30 5 4 5 4 5 5 5 5 Class Distribution -------------------- 66% | Hauler-Mutant 26% | Mutant 4% | Wizard-Mutant Dominant Class ---------------- Mutant | -10/Materials Mutant | -10/Subcaves Mutant | -8/Recycling Hauler-Mutant | -8/Scraptown Wizard-Mutant | -6/Factory Wizard-Sprinter | -5/Factory Wizard-Mutant | -5/Extension Wizard-Mutant | -5/Cetus Wizard-Mutant | -5/Archives Wizard-Mutant | -5/Hub_04(d) Wizard-Mutant | -4/Factory Wizard-Mutant | -3/Research Resources | -11 -10 -10 -8 -8 -6 -5 -5 -5 -5 -5 -4 -3 ----------- Run | Yrd Mat Sub Rec Scr Fac Fac Ext Cet Arc Hub Fac Res Matter Collected 1317 | 244 46 290 132 190 295 23 97 . . . . . Remotely . | . . . . . . . . . . . . . Salvage Created 1806 | 156 103 241 429 . 331 78 359 76 33 . . . Parts 102 | 16 2 16 19 . 22 5 20 2 . . . . Haulers Intercepted . | . . . . . . . . . . . . . Recyclers Shooed 4 | . . . 3 . 1 . . . . . . . Parts Field Recycled . | . . . . . . . . . . . . . Retrieved Matter . | . . . . . . . . . . . . . Parts Self-Destructed 9 | . . 9 . . . . . . . . . . Prevented . | . . . . . . . . . . . . . Kills | -11 -10 -10 -8 -8 -6 -5 -5 -5 -5 -5 -4 -3 ------- Run | Yrd Mat Sub Rec Scr Fac Fac Ext Cet Arc Hub Fac Res Combat Hostiles Destroyed 26 | . 2 8 4 . 4 3 4 1 . . . . Melee 12 | . . . . . 4 3 4 1 . . . . Guns 11 | . 2 5 4 . . . . . . . . . AOE 3 | . . 3 . . . . . . . . . . Classes Destroyed 12 | 2 1 3 1 . . . 5 . . . . . Builder 1 | . . . . . . . 1 . . . . . Tunneler 4 | 4 . . . . . . . . . . . . Recycler 6 | 1 . . 3 . 2 . . . . . . . Operator 2 | . . . . . . . 1 . 1 . . . Turret 2 | . . 2 . . . . . . . . . . Watcher 1 | . . . . . . . 1 . . . . . Swarmer 9 | . . 2 . . 4 3 . . . . . . Grunt 2 | . 2 . . . . . . . . . . . Sentry 6 | . . . 4 . . . 2 . . . . . Hunter 1 | . . . . . . . 1 . . . . . Programmer 1 | . . . . . . . 1 . . . . . Cetus Guard 1 | . . . . . . . . 1 . . . . Subdweller 6 | . . 6 . . . . . . . . . . Best Kill Streak 5 | 3 2 4 5 . 4 3 3 1 1 . . . Combat Bots Only 4 | . 2 3 2 . 4 3 2 1 . . . . Max Kills in Single Turn 2 | 1 1 2 1 . 1 1 1 1 1 . . . Gunslinging . | . . . . . . . . . . . . . Exploded 2 | . . 2 . . . . . . . . . . Melee 1 | . . . . . 1 1 1 1 . . . . Uniques/NPCs Destroyed . | . . . . . . . . . . . . . Combat | -11 -10 -10 -8 -8 -6 -5 -5 -5 -5 -5 -4 -3 -------- Run | Yrd Mat Sub Rec Scr Fac Fac Ext Cet Arc Hub Fac Res Hostile Shots Fired 503 | . 8 39 16 . 65 27 22 42 30 14 56 184 Missed 212 | . 1 16 5 . 23 11 14 20 12 6 26 78 Damage Taken 5808 | . 103 268 163 . 633 283 407 636 515 166 328 2306 Core 2578 | . 18 26 15 . 172 173 156 115 401 55 130 1317 Absorbed by Shields 50 | . . . . . . . 8 42 . . . . Core Remaining (%) 70 | 100 . . . 76 79 . . . . 10 88 . Volleys Fired 83 | 16 7 43 16 . . . . . . 1 . . Largest 2 | 2 2 2 2 . . . . . . 1 . . Hottest 90 | 70 70 90 70 . . . . . . 20 . . Shots Fired 151 | 32 14 75 29 . . . . . . 1 . . Gun 145 | 32 14 70 29 . . . . . . . . . Cannon . | . . . . . . . . . . . . . Launcher 5 | . . 5 . . . . . . . . . . Special 1 | . . . . . . . . . . 1 . . Kinetic 110 | 16 7 71 16 . . . . . . . . . Thermal 41 | 16 7 4 13 . . . . . . 1 . . Explosive . | . . . . . . . . . . . . . Electromagnetic . | . . . . . . . . . . . . . Robot Hit Streak 16 | 3 5 16 14 . . . . . . . . . Robot Miss Streak 3 | 3 3 1 2 . . . . . . . . . Penetration Max . | . . . . . . . . . . . . . Secondary Targets . | . . . . . . . . . . . . . Shots Hit Robots 96 | 16 8 21 22 . 8 3 17 1 . . . . Core Hits 53 | 6 5 15 12 . 6 3 5 1 . . . . Critical Kills . | . . . . . . . . . . . . . Critical Parts Destroyed . | . . . . . . . . . . . . . Critical Strikes 3 | 1 1 1 . . . . . . . . . . Burn 3 | 1 1 1 . . . . . . . . . . Melee Attacks 90 | . . . . . 15 10 20 2 2 15 6 20 Impact . | . . . . . . . . . . . . . Slashing 90 | . . . . . 15 10 20 2 2 15 6 20 Piercing . | . . . . . . . . . . . . . Sneak Attacks 6 | . . . . . 2 . 4 . . . . . Combat Hostiles 1 | . . . . . . . 1 . . . . . Follow-up Attacks . | . . . . . . . . . . . . . Damage Inflicted 3152 | 212 107 913 404 . 389 124 928 56 12 . . 7 Guns 1069 | 212 102 365 390 . . . . . . . . . Cannons . | . . . . . . . . . . . . . Explosions 548 | . . 548 . . . . . . . . . . Melee 1497 | . . . . . 389 124 928 56 . . . . Ramming 38 | . 5 . 14 . . . . . 12 . . 7 Kinetic 1314 | 109 53 876 276 . . . . . . . . . Thermal 303 | 103 49 37 114 . . . . . . . . . Explosive . | . . . . . . . . . . . . . Electromagnetic . | . . . . . . . . . . . . . Impact . | . . . . . . . . . . . . . Slashing 1497 | . . . . . 389 124 928 56 . . . . Piercing . | . . . . . . . . . . . . . Highest Corruption 4 | . . . . . . . . . 1 1 . 4 Average Corruption 1 | . . . . . . . . . 1 1 . 2 Corruption Purged . | . . . . . . . . . . . . . Corruption Blocked . | . . . . . . . . . . . . . Effects 2 | . . . . . . . . . . 2 . . Message Errors 1 | . . . . . . . . . . 1 . . Heat Flow Errors 1 | . . . . . . . . . . 1 . . Overload Shots . | . . . . . . . . . . . . . Overflow Damage 235 | . . 18 . . 2 . 213 . 2 . . . Projectiles . | . . . . . . . . . . . . . Explosions 18 | . . 18 . . . . . . . . . . Melee 217 | . . . . . 2 . 213 . 2 . . . Knockbacks . | . . . . . . . . . . . . . Impact . | . . . . . . . . . . . . . Kinetic . | . . . . . . . . . . . . . Secondary . | . . . . . . . . . . . . . Self-Inflicted Damage 22 | . . 13 . . . . . . 6 . . 3 Shots 1 | . . 1 . . . . . . . . . . Rammed 8 | . 1 . 4 . . . . . 1 . . 2 Targets Rammed 8 | . 1 . 4 . . . . . 1 . . 2 Kicked . | . . . . . . . . . . . . . Crushed . | . . . . . . . . . . . . . Highest Temperature 149 | 92 123 . 78 . . 27 2 . . 149 6 57 Average Temperature 37 | 34 62 . 31 . . 10 1 . . 87 3 31 Received Heat Transfer 824 | . 60 60 63 . 135 9 45 85 72 54 36 205 Siege Activations . | . . . . . . . . . . . . . Robots Corrupted 1 | . . . . . . . . . 1 . . . Combat Hostiles . | . . . . . . . . . . . . . Parts Fried 5 | . . . . . . . 2 . 3 . . . Impact Corruptions 1 | . . . . . . . . . 1 . . . Robots Melted . | . . . . . . . . . . . . . Combat Hostiles . | . . . . . . . . . . . . . Parts Melted 1 | . 1 . . . . . . . . . . . Heat Transferred 1027 | 370 222 185 250 . . . . . . . . . Parts Sabotaged . | . . . . . . . . . . . . . Parts Stolen . | . . . . . . . . . . . . . Parts Stripped . | . . . . . . . . . . . . . Power Chain Reactions . | . . . . . . . . . . . . . Alert | -11 -10 -10 -8 -8 -6 -5 -5 -5 -5 -5 -4 -3 ------- Run | Yrd Mat Sub Rec Scr Fac Fac Ext Cet Arc Hub Fac Res Peak Influence 434 | 25 73 . 52 . 153 379 362 104 69 69 39 434 Initial 185 | . 16 . 52 . . 74 185 104 . 11 30 9 Average 57 | 13 28 . 16 . 34 129 164 22 30 37 29 118 Maximum Alert Level 2 | . . . . . . 1 1 . . . . 2 Low Security (%) 94 | 100 100 . 100 . 100 77 80 100 100 100 100 73 Level 1 5 | . . . . . . 22 19 . . . . 19 Level 2 . | . . . . . . . . . . . . 6 Level 3 . | . . . . . . . . . . . . . Level 4 . | . . . . . . . . . . . . . Level 5 . | . . . . . . . . . . . . . High Security . | . . . . . . . . . . . . . Max Security . | . . . . . . . . . . . . . Squads Dispatched 12 | . . . . . 7 1 1 . . 1 . 2 Investigation 4 | . . . . . 3 . . . . . . 1 Extermination 2 | . . . . . 1 . . . . . . 1 Reinforcement 3 | . . . . . . 1 1 . . 1 . . Assault . | . . . . . . . . . . . . . Garrison 3 | . . . . . 3 . . . . . . . Intercept . | . . . . . . . . . . . . . Searches Triggered . | . . . . . . . . . . . . . Construction Impeded . | . . . . . . . . . . . . . Haulers Reinforced . | . . . . . . . . . . . . . Active Scanning Responses . | . . . . . . . . . . . . . Cargo Convoy Interrupts . | . . . . . . . . . . . . . Stealth | -11 -10 -10 -8 -8 -6 -5 -5 -5 -5 -5 -4 -3 --------- Run | Yrd Mat Sub Rec Scr Fac Fac Ext Cet Arc Hub Fac Res Distress Signals 3 | . . . . . 1 . . 2 . . . . Communications Jammed . | . . . . . . . . . . . . . Distress Signals . | . . . . . . . . . . . . . Times Spotted 140 | . 2 12 4 . 16 24 19 10 4 5 3 41 Peak Tracking Total 17 | . 2 6 2 . 7 17 8 9 4 4 3 17 Tactical Retreats 20 | . . 1 . . 5 2 5 . . . . 7 Traps | -11 -10 -10 -8 -8 -6 -5 -5 -5 -5 -5 -4 -3 ------- Run | Yrd Mat Sub Rec Scr Fac Fac Ext Cet Arc Hub Fac Res Traps Triggered 5 | . . . . . 1 . 3 . . . . 1 Indirectly . | . . . . . . . . . . . . . Trap Hack Attempts . | . . . . . . . . . . . . . Triggered . | . . . . . . . . . . . . . Disarmed . | . . . . . . . . . . . . . Reprogrammed 6 | . . . . . . . . . . . 6 . Reused . | . . . . . . . . . . . . . Traps Extracted . | . . . . . . . . . . . . . Installed . | . . . . . . . . . . . . . Triggered . | . . . . . . . . . . . . . Most Traps Carried 1 | . . . . 1 1 . . . . . . . Machines | -11 -10 -10 -8 -8 -6 -5 -5 -5 -5 -5 -4 -3 ---------- Run | Yrd Mat Sub Rec Scr Fac Fac Ext Cet Arc Hub Fac Res Machines Disabled 8 | . . 4 . . . . 2 2 . . . . Max in Single Turn 3 | . . 3 . . . . 1 1 . . . . Energy Cycler 3 | . . . . . . . 3 . . . . . Machines Repaired . | . . . . . . . . . . . . . Machines Dismantled . | . . . . . . . . . . . . . Machines Sabotaged . | . . . . . . . . . . . . . Overloaded Fab Kills . | . . . . . . . . . . . . . Hacking | -11 -10 -10 -8 -8 -6 -5 -5 -5 -5 -5 -4 -3 --------- Run | Yrd Mat Sub Rec Scr Fac Fac Ext Cet Arc Hub Fac Res Machines Accessed 51 | . 1 . 5 10 6 4 10 3 . 6 3 3 Terminals 38 | . 1 . 5 . 3 4 10 3 . 6 3 3 Fabricators 2 | . . . . . 2 . . . . . . . Repair Stations . | . . . . . . . . . . . . . Recycling Units . | . . . . . . . . . . . . . Scanalyzers . | . . . . . . . . . . . . . Garrison Access 1 | . . . . . 1 . . . . . . . Total Hacks 260 | . 3 . 13 72 14 18 55 11 . 38 27 9 Successful 209 | . 1 . 5 72 12 15 45 9 . 29 17 4 Failed 49 | . 2 . 8 . 2 3 8 2 . 9 10 5 Catastrophic 4 | . . . 2 . . . . . . 1 1 . Database Lockouts 2 | . . . . . . . 2 . . . . . Manual 106 | . . . 3 . 6 10 38 1 . 25 15 8 Terminals 181 | . 3 . 13 . 7 18 55 11 . 38 27 9 Fabricators 4 | . . . . . 4 . . . . . . . Repair Stations . | . . . . . . . . . . . . . Recycling Units . | . . . . . . . . . . . . . Scanalyzers . | . . . . . . . . . . . . . Garrison Access 3 | . . . . . 3 . . . . . . . Terminal Hacks 170 | . 1 . 5 72 6 13 35 9 . 18 10 1 Record 92 | . . . . 64 . 3 12 8 . 3 2 . Part Schematic 17 | . . . 2 . 1 1 10 . . 2 1 . Robot Analysis 9 | . . . . 6 . . 2 . . . . 1 Prototype ID Bank 7 | . . . 2 . 2 . 2 . . 1 . . Open Door 6 | . . . . 1 . 1 3 1 . . . . Level Access Points 2 | . . . . . . 1 . . . 1 . . Branch Access Points 1 | . . . . . . . 1 . . . . . Emergency Access Points 1 | . . . . . . . . . . . 1 . Terminal Index 5 | . . . . . 1 1 1 . . 1 1 . Fabricator Index 3 | . . . . . 1 1 . . . . 1 . Alert Level 1 | . . . . . . 1 . . . . . . Unreport Threat 1 | . . . . . . 1 . . . . . . Locate Traps 1 | . . . . . . . . . . . 1 . Reprogram Traps 1 | . . . . . . . . . . . 1 . Maintenance Status 1 | . . . . . . . . . . 1 . . Security Status 1 | . . . . . . 1 . . . . . . Surveillance Status 3 | . . . . . . . . . . 3 . . Patrol Status 4 | . . . . . . . . . . 2 2 . Transport Status 1 | . . . 1 . . . . . . . . . Recall Investigation 1 | . . . . . 1 . . . . . . . Hauler Manifests 3 | . . . . . . 1 1 . . 1 . . Registered Components 3 | . 1 . . . . . 1 . . 1 . . Registered Prototypes 1 | . . . . . . 1 . . . . . . Zone Layout 4 | . . . . . . . 2 . . 2 . . Derelict Proto ID Bank 1 | . . . . 1 . . . . . . . . Fabricator Hacks 4 | . . . . . 4 . . . . . . . Load Schematic 2 | . . . . . 2 . . . . . . . Build 2 | . . . . . 2 . . . . . . . Repair Station Hacks . | . . . . . . . . . . . . . Recycling Unit Hacks . | . . . . . . . . . . . . . Scanalyzer . | . . . . . . . . . . . . . Garrison Access Hacks 1 | . . . . . 1 . . . . . . . Coupler Status 1 | . . . . . 1 . . . . . . . Unauthorized Hacks 34 | . . . . . 1 2 10 . . 11 7 3 Terminals 33 | . . . . . . 2 10 . . 11 7 3 Track 3 | . . . . . . . 1 . . 1 1 . Assimilate 1 | . . . . . . . . . . 1 . . Botnet 11 | . . . . . . 1 4 . . 3 2 1 Operators 3 | . . . . . . 1 . . . 1 1 . Skim 15 | . . . . . . . 5 . . 5 3 2 Fabricators . | . . . . . . . . . . . . . Repair Stations . | . . . . . . . . . . . . . Recycling Units . | . . . . . . . . . . . . . Scanalyzers . | . . . . . . . . . . . . . Garrison Access 1 | . . . . . 1 . . . . . . . Reprogram 1 | . . . . . 1 . . . . . . . Data Cores Recovered . | . . . . . . . . . . . . . Used . | . . . . . . . . . . . . . Hacking Detections 31 | . 1 . 5 . 5 3 6 . . 5 3 3 Full Trace Events 5 | . . . 3 . 2 . . . . . . . Feedback Events . | . . . . . . . . . . . . . Feedback Blocked . | . . . . . . . . . . . . . Robot Schematics Acquired . | . . . . . . . . . . . . . Robots Built . | . . . . . . . . . . . . . Authchips . | . . . . . . . . . . . . . Time . | . . . . . . . . . . . . . Total Robot Build Rating . | . . . . . . . . . . . . . Part Schematics Acquired 17 | . . . 2 . 1 1 10 . . 2 1 . Parts Built 2 | . . . . . 2 . . . . . . . Authchips . | . . . . . . . . . . . . . Time 178 | . . . . . 178 . . . . . . . Total Part Build Rating 8 | . . . . . 8 . . . . . . . Parts Repaired . | . . . . . . . . . . . . . Time . | . . . . . . . . . . . . . Parts Recycled . | . . . . . . . . . . . . . Recycled Matter . | . . . . . . . . . . . . . Retrieved Matter . | . . . . . . . . . . . . . Retrieved Components . | . . . . . . . . . . . . . Parts Scanalyzed . | . . . . . . . . . . . . . Part Schematics Acquired . | . . . . . . . . . . . . . Parts Damaged . | . . . . . . . . . . . . . Bothacking | -11 -10 -10 -8 -8 -6 -5 -5 -5 -5 -5 -4 -3 ------------ Run | Yrd Mat Sub Rec Scr Fac Fac Ext Cet Arc Hub Fac Res Used RIF Installer . | . . . . . . . . . . . . . Robots Hacked . | . . . . . . . . . . . . . Non-combat . | . . . . . . . . . . . . . Combat . | . . . . . . . . . . . . . Robot Hacks Applied . | . . . . . . . . . . . . . Relay Couplers Released . | . . . . . . . . . . . . . Fabnet Peak Effective % . | . . . . . . . . . . . . . Robots Rewired 4 | . . . . . . . 4 . . . . . Allies Hacked . | . . . . . . . . . . . . . Hacks Repelled . | . . . . . . . . . . . . . Allies | -11 -10 -10 -8 -8 -6 -5 -5 -5 -5 -5 -4 -3 -------- Run | Yrd Mat Sub Rec Scr Fac Fac Ext Cet Arc Hub Fac Res Total Allies 13 | . . . . . 3 . 8 2 . . . . Largest Group 5 | . . . . . 3 . 5 5 . . . . Highest-Rated Group 275 | . . . . . 87 . 275 275 . . . . Highest-Rated Ally 151 | . . . . . 29 . 151 151 . . . . Total Orders . | . . . . . . . . . . . . . Ally Attacks 85 | . . . . . 11 . 50 24 . . . . Total Damage 1781 | . . . . . 191 . 987 603 . . . . Kills 4 | . . . . . 1 . 3 . . . . . Allies Corrupted . | . . . . . . . . . . . . . Allies Melted . | . . . . . . . . . . . . . Intel | -11 -10 -10 -8 -8 -6 -5 -5 -5 -5 -5 -4 -3 ------- Run | Yrd Mat Sub Rec Scr Fac Fac Ext Cet Arc Hub Fac Res Robot Analysis Total 9 | . . . . 6 . . 2 . . . . 1 Derelict Logs Recovered 3 | . . . . 3 . . . . . . . . Drone Launches . | . . . . . . . . . . . . . Drone Recoveries . | . . . . . . . . . . . . . Exploration | -11 -10 -10 -8 -8 -6 -5 -5 -5 -5 -5 -4 -3 ------------- Run | Yrd Mat Sub Rec Scr Fac Fac Ext Cet Arc Hub Fac Res Turns Passed 48512 | 116 542 1400 2521 40784 886 208 1109 138 29 293 94 392 Spaces Moved 12451 | 54 188 784 1299 6512 879 327 1243 237 40 327 114 447 Core 4164 | . . . . 3964 1 . 4 18 20 30 . 127 Treads 4999 | . 72 784 1299 2548 296 . . . . . . . Legs 170 | 54 116 . . . . . . . . . . . Wheels 98 | . . . . . . . . . . . . 98 Hover 653 | . . . . . . . . . 20 297 114 222 Flight 2367 | . . . . . 582 327 1239 219 . . . . Fastest Speed 20 | 120 120 160 160 50 29 20 24 35 50 50 62 50 Average Speed 359 | 120 165 160 160 597 82 45 39 49 56 69 65 69 Slowest Speed 3650 | 120 240 160 160 3650 480 104 200 100 100 100 66 130 Overloaded Moves 54 | . . . . . . 54 . . . . . . Propulsion Burnouts . | . . . . . . . . . . . . . Robots Hopped 14 | . . . . . 1 . 13 . . . . . Cave-ins Triggered . | . . . . . . . . . . . . . Exploration Rate (%) 45 | 4 16 45 97 92 14 14 80 89 68 44 3 26 Regions Visited 12 Branch Regions 7 Pre-discovered Areas 7 | . . . . 5 . . 2 . . . . . Known Exits Taken 6 | . . . . 1 1 1 1 . . 1 1 . Unknown Exits Taken 6 | 1 1 1 1 . . . . 1 1 . . . Scrap Searched 4 | . . . . 4 . . . . . . . . Spaces Dug 47 | . . . . . 3 7 . . 2 15 2 18 Terrain Destroyed 105 | . . 58 . . 3 7 . . 2 15 2 18 Melee 47 | . . . . . 3 7 . . 2 15 2 18 Projectile . | . . . . . . . . . . . . . AOE 58 | . . 58 . . . . . . . . . . Terrain Rammed . | . . . . . . . . . . . . . Walls Destroyed . | . . . . . . . . . . . . . Machines Disabled . | . . . . . . . . . . . . . Actions | -11 -10 -10 -8 -8 -6 -5 -5 -5 -5 -5 -4 -3 --------- Run | Yrd Mat Sub Rec Scr Fac Fac Ext Cet Arc Hub Fac Res Total 15949 | 72 402 854 1711 8413 1023 369 1821 254 43 364 123 500 Wait 2883 | . 197 8 377 1689 38 23 524 15 . 8 . 4 Move 12415 | 53 187 783 1298 6511 876 326 1220 236 39 326 113 447 Hop 10 | . . . . . 1 . 9 . . . . . Pick Up 156 | 2 3 6 7 103 15 3 9 . . 5 . 3 Fast Attach 42 | 1 . 2 1 15 4 3 4 . . 4 2 6 Attach 52 | . . 2 . 10 18 4 6 1 . 5 1 5 Detach 11 | . . . . 1 4 . . . 1 . 1 4 Swap 20 | . 6 4 3 . 6 . 1 . . . . . Drop 136 | . 1 6 5 84 26 . 5 . . . . 9 Fire 83 | 16 7 43 16 . . . . . . 1 . . Melee 90 | . . . . . 15 10 20 2 2 15 6 20 Ram 3 | . . . . . . . . . 1 . . 2 Kick . | . . . . . . . . . . . . . Crush 5 | . 1 . 4 . . . . . . . . . Escape Stasis 31 | . . . . . 18 . 13 . . . . . Rewire 10 | . . . . . . . 10 . . . . . Trap . | . . . . . . . . . . . . . Miscellaneous 2 | . . . . . 2 . . . . . . . Route ------- -11/Scrapyard -10/Materials -10/Subcaves -8/Recycling (discovered 2 exits: *Fac / *Scr) -8/Scraptown (discovered 2 exits: *Fac x2) -6/Factory (discovered 6 exits: *Fac x4 / Low x2) -5/Factory (discovered 7 exits: Fac x4 / Upp x2 / *Ext) -5/Extension (discovered 3 exits: *Fac x2 / *Cet) -5/Cetus (discovered 3 exits: *Fac x2 / *Arc) -5/Archives -5/Hub_04(d) (discovered 4 exits: *Fac x4) -4/Factory (discovered 6 exits: *Res x3 / Upp x2 / Arm) -3/Research (discovered 1 exit: Res) History --------- Turn | Location | Event 1 | -11/Scrapyard | Discovered new exit (range 2) 117 | -11/Scrapyard | Entered Materials 344 | -10/Materials | Build established: Mutant 633 | -10/Materials | Discovered new exit (range 6) 659 | -10/Materials | Entered Subcaves 824 | -10/Subcaves | Shifting Twisted Machinery released Mak. System Shield 825 | -10/Subcaves | Shifting Twisted Machinery released Sub. Shrapnel Launcher 999 | -10/Subcaves | A Subdweller sparked back to life 999 | -10/Subcaves | A Subdweller sparked back to life 999 | -10/Subcaves | A Subdweller sparked back to life 1732 | -10/Subcaves | A swath of the cavern ceiling suddenly collapsed 1889 | -10/Subcaves | Discovered new exit (range 8) 2059 | -10/Subcaves | Entered Recycling 2579 | -8/Recycling | Discovered new exit (range 5) 4537 | -8/Recycling | Scanned before Scraplab entrance 4561 | -8/Recycling | Entered Scraplab 4575 | -8/Recycling | Discovered new exit (range 3) 4580 | -8/Recycling | Entered Scraptown 4888 | -8/Scraptown | Visited UFD Registry 4888 | -8/Scraptown | Registered with UFD as "Matterdrive" 5001 | -8/Scraptown | Visited Red Mages 5100 | -8/Scraptown | Visited Cyclists 5120 | -8/Scraptown | Entered Cyclist Reading Room 7423 | -8/Scraptown | Visited Sword Containment 7455 | -8/Scraptown | Visited Science Testing Area 7665 | -8/Scraptown | Scanned Subdweller tech in exchange for log data 7668 | -8/Scraptown | Learned 8 Research zone layouts 7669 | -8/Scraptown | Learned 12 Factory zone layouts 7670 | -8/Scraptown | Learned location of Zion (-6) 7689 | -8/Scraptown | Discovered new exit (range 5) 7772 | -8/Scraptown | Visited SPCMW 7822 | -8/Scraptown | Visited Assassins FH 7953 | -8/Scraptown | Visited Science Guys 8018 | -8/Scraptown | Visited Derelict Rescue Squad 8028 | -8/Scraptown | Found DRS Beacon 8060 | -8/Scraptown | Visited Scrapoid Pod Storage 8116 | -8/Scraptown | Delivered Scrap Shield to a Scientist 8338 | -8/Scraptown | Visited Analyses Database 8371 | -8/Scraptown | Visited Abandonware Association 8390 | -8/Scraptown | Learned abandonware demo "MELTYB.EXE" 8421 | -8/Scraptown | Visited Scrap Suit Storage 8439 | -8/Scraptown | Visited Botcube Research 8451 | -8/Scraptown | Found Botcube 8522 | -8/Scraptown | Visited Cave Peace 8624 | -8/Scraptown | Visited Fellowship of the Rings 8885 | -8/Scraptown | Released all parts (6) 9321 | -8/Scraptown | Build established: Hauler-Mutant 35851 | -8/Scraptown | Found Scrapoid Pod 35894 | -8/Scraptown | Visited Cartography Club 35945 | -8/Scraptown | Found Surveybot 17 Chip 36057 | -8/Scraptown | Build established: Mutant 36070 | -8/Scraptown | Learned location of Hub_04(d) (-5) 36070 | -8/Scraptown | Learned location of Testing (-2) 36070 | -8/Scraptown | Learned 8 Materials zone layouts 36070 | -8/Scraptown | Learned 16 Factory zone layouts 36070 | -8/Scraptown | Learned 20 Factory zone layouts 36070 | -8/Scraptown | Learned 8 Access zone layouts 36070 | -8/Scraptown | Learned 4 Mines zone layouts 36070 | -8/Scraptown | Learned 4 Storage zone layouts 36070 | -8/Scraptown | Learned 4 Recycling zone layouts 36070 | -8/Scraptown | Learned 12 Upper Caves zone layouts 36070 | -8/Scraptown | Learned 16 Upper Caves zone layouts 36070 | -8/Scraptown | Learned 20 Upper Caves zone layouts 36070 | -8/Scraptown | Learned location of 2 exits from Factory 36070 | -8/Scraptown | Learned location of 3 exits from Factory 36070 | -8/Scraptown | Learned location of 3 exits from Lower Caves 36070 | -8/Scraptown | Identified exit to Factory 36232 | -8/Scraptown | Found Scrap Suit 36609 | -8/Scraptown | Found Scrap Suit 36625 | -8/Scraptown | Found Scrap Suit 37867 | -8/Scraptown | Visited CPS Storage 39682 | -8/Scraptown | Found Scrap Suit 39684 | -8/Scraptown | Found Scrap Suit 39687 | -8/Scraptown | Found Scrap Suit 40051 | -8/Scraptown | Build established: Hauler-Mutant 41159 | -8/Scraptown | Found Scrap Suit 41194 | -8/Scraptown | Found Scrap Suit 41229 | -8/Scraptown | Found Scrap Suit 41264 | -8/Scraptown | Found Scrap Suit 41299 | -8/Scraptown | Found Scrap Suit 41572 | -8/Scraptown | Found Scrap Suit 45364 | -8/Scraptown | Entered Factory 45364 | -6/Factory | Evolved 8 slots: Propulsion x1, Utility x7 45365 | -6/Factory | Identified exit to Factory 45366 | -6/Factory | Identified exit to Lower Caves 45716 | -6/Factory | Build established: Wizard-Mutant 45994 | -6/Factory | Lost 3 parts (2u1w) 46145 | -6/Factory | Fabricated Cld. VTOL Module? 46187 | -6/Factory | Lost 4 parts (1p2n1u) 46233 | -6/Factory | Fabricated Cld. VTOL Module? 46250 | -6/Factory | Entered another Factory area 46250 | -5/Factory | Evolved 2 slots: Propulsion x2 46251 | -5/Factory | Identified exit to Upper Caves 46252 | -5/Factory | Identified exit to Factory 46252 | -5/Factory | Identified exit to Extension 46458 | -5/Factory | Entered Extension 46466 | -5/Extension | Disrupted transfer network 46478 | -5/Extension | Energy Cycler disabled 46478 | -5/Extension | Rescued a captive Derelict 46479 | -5/Extension | Rescued a captive Derelict 46487 | -5/Extension | Rescued a captive Derelict 46494 | -5/Extension | Rescued a captive Derelict 46509 | -5/Extension | Lost 6 parts (1p4n1u) 46553 | -5/Extension | Central database locked down 46612 | -5/Extension | Spotted B-75 Beast 46614 | -5/Extension | Spotted B-75 Beast 46618 | -5/Extension | Discovered exit to Factory (range 14) 46650 | -5/Extension | Build established: Wizard-Sprinter 46652 | -5/Extension | Rescued A7 46652 | -5/Extension | Central database locked down 46652 | -5/Extension | Identified exit to Cetus 46739 | -5/Extension | Learned location of 2 exits from Factory 46813 | -5/Extension | Learned Testing garrison access intel 46875 | -5/Extension | Learned Factory trap positions 47001 | -5/Extension | Learned 4 Quarantine zone layouts 47042 | -5/Extension | Learned location of Upper Caves (-4) 47094 | -5/Extension | Learned location of 3 exits from Factory 47106 | -5/Extension | Build established: Wizard-Mutant 47133 | -5/Extension | Discovered exit to Factory (range 20) 47567 | -5/Extension | Entered Cetus 47567 | -5/Cetus | Accompanied by 5 allies (A7) 47572 | -5/Cetus | Acquired a Cetus Manufacturing Module code from A7 47575 | -5/Cetus | Spotted Cetus Guard 47575 | -5/Cetus | Spotted Cetus Guard 47575 | -5/Cetus | Spotted Cetus Guard 47585 | -5/Cetus | Discovered exit to Factory (range 16) 47599 | -5/Cetus | Spotted Cetus Guard 47608 | -5/Cetus | Destroyed Cetus Guard 47613 | -5/Cetus | Extracted ID and sensor layout for unrecognized location from A7's data core 47646 | -5/Cetus | Started Cetus Manufacturing Module 47668 | -5/Cetus | Discovered new exit (range 16) 47671 | -5/Cetus | Manufactured an Enhanced Grunt 47677 | -5/Cetus | Spotted Cetus Guard 47677 | -5/Cetus | Spotted Cetus Guard 47677 | -5/Cetus | Spotted Cetus Guard 47678 | -5/Cetus | Spotted Cetus Guard 47679 | -5/Cetus | Discovered exit to Factory (range 15) 47696 | -5/Cetus | Manufactured an Enhanced Grunt 47705 | -5/Cetus | Entered Archives 47719 | -5/Archives | Lost 4 parts (4n) 47720 | -5/Archives | Core integrity fell below 50% 47721 | -5/Archives | Unable to access archive contents 47723 | -5/Archives | Discovered new exit (range 15) 47732 | -5/Archives | Core integrity fell below 20% 47734 | -5/Archives | Entered Hub_04(d) 47763 | -5/Hub_04(d) | Lost 5 parts (1n4u) 48027 | -5/Hub_04(d) | Entered Factory 48027 | -4/Factory | Evolved 2 slots: Power x1, Propulsion x1 48028 | -4/Factory | Identified exit to Armory 48029 | -4/Factory | Identified exit to Research 48029 | -4/Factory | Identified exit to Upper Caves 48030 | -4/Factory | Loaded intel: 100 trap records 48121 | -4/Factory | Entered Research 48121 | -3/Research | Evolved 2 slots: Utility x2 48122 | -3/Research | Identified exit to Research 48152 | -3/Research | Lost 3 parts (2p1u) 48401 | -3/Research | Spotted B-86 Titan 48439 | -3/Research | Spotted B-90 Cyclops 48480 | -3/Research | Core integrity fell below 50% 48488 | -3/Research | Lost 5 parts (1p3n1u) 48488 | -3/Research | Spotted B-86 Titan 48497 | -3/Research | Core integrity fell below 20% 48513 | -3/Research | Destroyed by S-43 Plague with Heavy Machine Gun Last Messages --------------- investigation squad. 48448_ Penetrated by Slug. 48453_ U-05 Engineer lays Concrete. 48457_ System Shield destroyed. 48465_ P-80 Master resets S-43 Plague, system corruption cleaned. Companion Sword: "If you're not going to use me, just drop me and get it over with." 48488_ Terminal disabled. 48488_ Penetrated by Slug. 48491_ Hacking Suite destroyed. 48492_ K-01 Serf collects debris. 48498_ Penetrated by Slug. 48498_ Slug penetrates Wall. 48499_ B-86 Titan activates siege mode. 48500_ Enh. Optical Array destroyed. 48500_ Hacking Suite destroyed. 48500_ K-01 Serf collects debris. 48501_ Slug penetrates Wall. 48501_ Penetrated by Slug. Map ----- +----------------------------------------------------+ | ?????????####??##### #??""" #???????????? | | ?????????# ????# #???"" #???????????? | | ?????????# ??# #??? #???????????? | | ?????????#! # #???? #???????????? | | ?????????# + #?????########???????????? | | ?????????# # #????????????????????????? | | ?????????# ??# #????????????????????????? | | ?????????# ????# # """ # # | | ?????????# ??????# # """ # ###### | | ?????????##????????# # """ # #????? | | ???????##??????????# # # ###### | | ??????? [ ????????# # # ## | | ??????# ??????# # ""T"" # ## | | ??????# ????# # """"" # ## "" | | ??????? ??# #####+############ ## "T | | ??????????""" # # "" | | ??????????""" + # | | ??????????""" #^ + | | ?????????""" ??# """ # | | ???????? ????# """ ####### # | | ??????# ??????#!! """ # # # | | ??????? ????????#!! """ # / # | | ??????? ??????????#!! """ # # ####### | | ???????????????????# ] # # #?????##+## | | ???????????????????# # # #??????# #? | | ???????????????????# @ # # #??????# #? | | ???????????????????######## # # ######## ## | | ???????????????????????? # #####+# | | ???????????????????????? # #???# ### | | ???????????????????????? # #???# ### | | ???????????????????????? # #???# """ # | | ???????????????????????? # #???# """ # | | ???????????????????????? + #???# """ # | | ???????????????????????? # #???# + | | ???????????????????????? # #???# # | | ???????????????????????? # #???# # | | ????????????????????????### #???####### #### | | ??????????????????????????# #?????????# # | | ??????????????????????????# #?????????# + | | ??????????????????????????# #?????????# # | | ??????????????????????????# #?????????# # | | ??????????????????????????# ########### # | | ??????????????????????????# # ## # | | ??????????????????????????# # ## # | | ??????????????????????????# # "" ## # | | ??????????????????????????# # """ ## #### | | ??????????????????????????# + "R ## # | | ??????????????????????????# < # """ ## # | | ??????????????????????????# # """ ## + | | ??????????????????????????# # ## # | +----------------------------------------------------+ Best States ------------- Heat Dissipation 59 Energy Generation 37 Energy Capacity 395 Matter Stores 300 Matter Capacity 300 Sight Range 22 Robot Scan Range 15 Terrain Scan Range 20 Terrain Scan Density 1210 Evasion (%) 65 Targeting Accuracy 20 Recoil Reduction 3 Offensive Hacking 60 Defensive Hacking 34 Item Schematics ----------------- Hrd. Medium Armor Plating | -8/Recycling | Hacked Fission Core | -8/Recycling | Hacked Cld. VTOL Module | -6/Factory | Hacked Mic. Fission Core | -5/Factory | Hacked Hacking Suite | -5/Extension | Hacked Adv. Hacking Suite | -5/Extension | Hacked Adv. System Shield | -5/Extension | Hacked Imp. Flight Unit | -5/Extension | Hacked Machine Analyzer | -5/Extension | Hacked Imp. Cesium-ion Thruster | -5/Extension | Hacked Lgt. Nuclear Core | -5/Extension | Hacked Lgt. Fission Core | -5/Extension | Hacked Lrn. Missile Launcher | -5/Extension | Hacked Adv. Salvage Targeting Computer | -5/Extension | Hacked Carbide Saw | -5/Hub_04(d) | Hacked Imp. Reaction Control System | -5/Hub_04(d) | Hacked Impulse Thruster | -4/Factory | Hacked Robot Schematics ------------------ None Fabricated ------------ Cld. VTOL Module | x1 | -6/Factory Cld. VTOL Module | x1 | -6/Factory Alien Tech Used ----------------- None Achievements -------------- Project G-00 Challenges ------------ None Game ------ Seed MicrowarpArmageddonSabre Manual? 0 Play Time 02:06:45 Cumulative 116.1 hours Start 2024.12.07 @ 17:40:40 End 2024.12.07 @ 21:25:57 Sessions 4 Manual Loads 0 Difficulty Rogue Special Mode None Game No. 155 Rogue 155 Adventurer 0 Explorer 0 Win Type - Total 1 Types 1/0/0/0/0/0/0/0/0 Lore% 62 Gallery% 50 Achievement% 37 Wizard Run 0 Options --------- Layout 1 ASCII 0 Keyboard 0 Movement Arrows Keybinds 0 Fullscreen 1 Font 24/Smallcaps Map View 50x40 Zoom Use 0% Tactical HUD 1 Map Filters NONE Filters NONE Steam 1 RUN: c7559645-dd23-4c53-8641-2ea3b3b9e206